bitfinex-derivatives/quotes_SOLF0:USTF0_20240927
["timestamp","ask_amount","ask_price","bid_price","bid_amount"]
[1727436708667,3.2025,156.09,156.01,16.93]
[1727436709070,22.61358861,156.11,156.05,3.2031]
[1727436709271,22.61358861,156.11,156.01,16.93]
[1727436709272,3.2025,156.09,156.01,16.93]
[1727436709570,19.4681,156.11,156.05,3.2031]
[1727436709973,3.2025,156.09,156.05,3.2031]
[1727436710173,19.4681,156.11,156.01,16.93]
[1727436710767,3.2026,156.09,156.01,16.93]
[1727436711169,3.2023,156.1,156.03,16.93]
[1727436711975,3.2023,156.1,156.06,3.2028]
[1727436712472,3.2023,156.1,156.07,3.2028]
[1727436716368,3.2025,156.09,156.06,14.023]
[1727436717179,3.2023,156.1,156.07,3.2028]
[1727436718267,10.82,156.09,156.0,5.80992208]
[1727436718477,10.82,156.09,156.04,10.82]
[1727436719973,14.0226,156.09,156.06,3.203]
[1727436720582,10.82,156.07,156.0,2.6811]
[1727436720776,10.82,156.07,156.01,10.82]
[1727436721676,3.19702804,156.12,156.04,10.82]
[1727436721677,10.82,156.09,156.04,10.82]
[1727436721876,3.2029,156.07,156.04,10.82]
[1727436722084,10.82,156.06,156.0,2.6811]
[1727436722283,10.82,156.06,156.01,10.82]
[1727436722779,10.82,156.05,156.0,2.6811]
[1727436722982,10.82,156.02,155.96,1.2739]
[1727436723174,2.569,156.15,155.96,1.2739]
[1727436723175,10.82,156.01,155.96,1.2739]
[1727436723377,14.0242,156.01,155.97,3.2048]
[1727436723676,3.2042,156.01,155.97,10.82]
[1727436724082,14.024,156.02,155.98,10.82]
[1727436724381,10.82,156.02,155.98,10.82]
[1727436724581,10.82,156.04,156.0,3.2041]
[1727436725181,3.2038,156.03,156.0,3.2041]
[1727436725383,1.3779,156.07,156.01,14.024]
[1727436725580,10.82,156.07,156.02,10.82]
[1727436726778,14.0229,156.07,156.02,10.82]
[1727436726975,1.3931,156.08,156.04,10.82]
[1727436727787,3.2029,156.07,156.04,14.0233]
[1727436728384,3.2029,156.07,156.04,3.2033]
[1727436731801,3.2027,156.08,156.05,3.2032]
[1727436732297,3.2025,156.09,156.02,16.92]
[1727436732502,3.2025,156.09,156.03,2.7135]
[1727436733003,3.2024,156.1,156.05,16.92]
[1727436733201,16.92,156.14,156.05,16.92]
[1727436733599,3.202,156.11,156.08,3.2025]
[1727436734001,16.92,156.14,156.05,16.92]
[1727436734493,3.2019,156.12,156.05,16.92]
[1727436734897,18.1961,156.16,156.07,16.92]
[1727436735102,1.2761,156.16,156.1,3.202]
[1727436736496,3.2016,156.14,156.1,3.202]
[1727436738006,18.1961,156.16,156.09,3.2024]
[1727436738202,16.92,156.14,156.05,16.92]
[1727436738699,3.2024,156.1,156.07,3.2028]
[1727436741509,16.92,156.1,156.01,16.92]
[1727436741803,3.203,156.07,156.04,3.2034]
[1727436742199,16.92,156.1,156.01,16.92]
[1727436742400,16.92,156.1,156.03,3.2036]
[1727436742806,16.92,156.1,156.01,16.92]
[1727436743006,3.2038,156.03,155.99,3.2044]
[1727436743205,16.92,156.05,155.99,3.2044]
[1727436743706,16.92,156.08,155.98,2.5515]
[1727436743904,18.3008,156.09,155.99,16.92]
[1727436744098,18.3008,156.09,156.01,16.92]
[1727436744299,1.3808,156.09,156.01,16.92]
[1727436744993,3.2028,156.08,156.01,16.92]
[1727436745595,16.92,156.13,156.03,16.92]
[1727436745801,18.2122,156.15,156.05,16.92]
[1727436746003,3.2018,156.12,156.05,16.92]
[1727436746202,3.2018,156.12,156.07,16.92]
[1727436746602,18.2122,156.15,156.07,16.92]
[1727436746800,1.2922,156.15,156.07,16.92]
[1727436747600,3.2016,156.13,156.09,3.2023]
[1727436750207,3.2016,156.13,156.1,3.2022]
[1727436755010,3.2019,156.12,156.07,16.92]
[1727436755207,18.2122,156.15,156.05,16.92]
[1727436756005,16.92,156.13,156.03,16.92]
[1727436756306,16.92,156.11,155.99,1.2653]
[1727436756505,3.23720966,156.1,156.0,16.92]
[1727436756705,16.92,156.11,156.0,16.92]
[1727436757303,3.2029,156.07,156.03,3.2036]
[1727436757804,3.2032,156.06,156.02,3.2037]
[1727436758009,16.92,156.09,156.0,16.92]
[1727436758909,3.2031,156.06,156.02,3.2038]
[1727436759413,3.2029,156.07,156.03,3.2036]
[1727436760114,3.2029,156.07,156.0,16.92]
[1727436761113,3.2029,156.07,156.03,3.2035]
[1727436761503,3.2027,156.08,156.02,16.92]
[1727436761909,3.2027,156.08,156.05,3.2031]
[1727436762213,3.2025,156.09,156.02,16.92]
[1727436763518,3.2023,156.1,156.04,16.92]
[1727436763727,1.3228,156.14,156.05,16.92]
[1727436764812,3.202,156.11,156.08,3.2025]
[1727436766216,3.202,156.11,156.07,3.2028]
[1727436767119,3.2024,156.09,156.03,16.92]
[1727436767317,1.3228,156.14,156.03,16.92]
[1727436768015,3.2021,156.11,156.07,3.2028]
[1727436768718,3.2022,156.1,156.07,3.2028]
[1727436770517,3.2022,156.1,156.06,3.203]
[1727436770719,3.21849474,156.12,156.03,16.92]
[1727436770913,3.21849474,156.12,156.04,3.2033]
[1727436771118,16.92,156.11,156.01,16.92]
[1727436771422,3.2026,156.08,156.01,16.92]
[1727436772224,16.92,156.11,156.01,16.92]
[1727436772522,16.92,156.08,155.99,1.2653]
[1727436773314,16.92,156.06,155.99,1.2653]
[1727436773821,16.92,156.08,155.99,1.2653]
[1727436774025,18.3039,156.11,156.0,16.92]
[1727436774520,3.2028,156.08,156.04,3.2033]
[1727436774717,3.13291457,156.1,156.0,16.92]
[1727436775222,3.2027,156.08,156.04,3.2034]
[1727436775423,16.92,156.08,156.0,16.92]
[1727436775814,3.2032,156.06,156.02,3.2037]
[1727436776419,3.2032,156.06,156.03,3.2036]
[1727436777021,3.2032,156.06,156.0,16.92]
[1727436777222,16.92,156.06,156.0,3.2043]
[1727436777418,16.92,156.06,155.98,2.5515]
[1727436777620,16.92,156.04,155.98,2.5515]
[1727436778421,16.92,156.04,155.94,18.3047]
[1727436778724,16.92,156.04,155.95,1.3584]
[1727436779234,3.2043,156.01,155.98,3.2047]
[1727436779620,3.2043,156.01,155.95,1.3584]
[1727436779821,16.92,156.02,155.95,4.5635]
[1727436780029,16.92,156.02,155.95,1.3584]
[1727436780619,16.92,156.04,155.95,1.3584]
[1727436780823,16.92,156.04,155.94,18.3047]
[1727436781019,16.92,156.04,155.95,1.3517]
[1727436781224,16.92,156.06,155.96,16.92]
[1727436782625,3.2038,156.03,155.99,3.2043]
[1727436783921,3.2035,156.04,155.96,16.92]
[1727436784732,3.2031,156.06,155.99,16.92]
[1727436785233,16.92,156.08,155.99,16.92]
[1727436785460,16.92,156.08,156.0,2.6451]
[1727436785833,1.3844,156.09,156.0,19.5651]
[1727436786445,3.2028,156.08,156.04,3.2033]
[1727436786645,3.2028,156.08,156.0,19.5651]
[1727436787050,3.2028,156.08,156.04,3.2033]
[1727436787645,4.5869,156.09,156.05,3.2031]
[1727436787946,1.3844,156.09,156.05,3.2031]
[1727436788149,1.3844,156.09,156.0,19.5651]
[1727436788750,1.3844,156.09,156.04,3.2034]
[1727436789735,3.2029,156.07,156.04,3.2034]
[1727436789930,16.92,156.08,156.0,2.6451]
[1727436790933,3.2029,156.07,156.03,3.2036]
[1727436792036,16.92,156.08,156.0,2.6451]
[1727436792329,16.92,156.08,155.96,16.92]
[1727436792527,3.2036,156.04,155.96,19.5033]
[1727436792731,16.92,156.06,155.96,19.5033]
[1727436793326,16.92,156.06,156.0,3.2042]
[1727436793727,16.92,156.06,155.96,19.5033]
[1727436793927,3.2037,156.03,155.96,19.5033]
[1727436794136,16.92,156.06,155.96,19.5033]
[1727436794834,16.92,156.08,155.96,19.5033]
[1727436795137,16.92,156.08,155.99,16.92]
[1727436795734,16.92,156.08,155.96,2.5833]
[1727436795735,16.92,156.06,155.96,19.5033]
[1727436795937,3.2037,156.03,155.99,3.2043]
[1727436797141,3.2039,156.02,155.98,3.2046]
[1727436797526,16.92,156.06,155.96,2.5833]
[1727436797939,3.2035,156.04,155.99,3.2045]
[1727436799342,3.2035,156.04,155.96,2.5833]
[1727436800234,3.2035,156.04,156.0,3.2041]
[1727436800436,14.0335,156.04,156.0,3.2041]
[1727436801936,1.3822,156.08,156.0,10.83]
[1727436802136,10.83,156.05,156.0,10.83]
[1727436802337,10.83,156.05,156.01,10.83]
[1727436802538,10.83,156.05,156.02,3.2037]
[1727436803144,10.83,156.05,156.03,3.2036]
[1727436804138,1.3822,156.08,156.04,3.2034]
[1727436804139,4.585,156.08,156.04,3.2034]
[1727436804335,10.83,156.08,156.02,10.83]
[1727436804940,14.0328,156.08,156.04,3.2033]
[1727436806239,14.0328,156.08,156.05,3.2032]
[1727436806440,14.0325,156.09,156.05,3.2032]
[1727436806645,10.83,156.09,156.05,3.2032]
[1727436807333,3.2027,156.08,156.05,3.2032]
[1727436807843,10.83,156.09,156.04,10.83]
[1727436807844,10.83,156.09,156.06,3.203]
[1727436808640,2.5838,156.15,156.07,10.83]
[1727436808941,10.83,156.12,156.07,10.83]
[1727436809140,14.032,156.12,156.09,3.2024]
[1727436809741,1.3021,156.15,156.11,3.202]
[1727436810044,22.59144738,156.16,156.11,10.83]
[1727436810241,10.83,156.16,156.11,10.83]
[1727436811137,14.0311,156.16,156.12,3.2017]
[1727436812336,3.2011,156.16,156.12,3.2017]
[1727436814645,3.2011,156.16,156.13,3.2016]
[1727436815046,3.2009,156.17,156.13,3.2016]
[1727436815247,95.54391272,156.19,156.11,16.92]
[1727436815444,94.23901272,156.19,156.11,16.92]
[1727436815845,3.2006,156.18,156.14,3.2013]
[1727436820847,3.2008,156.17,156.13,3.2015]
[1727436821846,3.2008,156.17,156.14,3.2014]
[1727436832168,16.92,156.22,156.14,16.92]
[1727436832459,1.3293,156.24,156.16,10.82]
[1727436832460,10.82,156.21,156.16,10.82]
[1727436832657,3.2003,156.2,156.16,14.0208]
[1727436833751,14.0203,156.2,156.16,3.2008]
[1727436835162,3.2004,156.19,156.16,3.2008]
[1727436837159,3.2008,156.17,156.14,3.2013]
[1727436837365,14.0208,156.17,156.14,3.2013]
[1727436838565,3.2008,156.17,156.14,14.0213]
[1727436839263,14.0207,156.18,156.14,14.0213]
[1727436839464,3.2007,156.18,156.14,14.0213]
[1727436839665,14.0207,156.18,156.14,14.0213]
[1727436840373,10.82,156.16,156.12,3.2017]
[1727436840565,10.82,156.15,156.12,3.2017]
[1727436840762,10.82,156.15,156.1,10.82]
[1727436840962,10.82,156.18,156.12,10.82]
[1727436841766,3.2009,156.17,156.14,3.2013]
[1727436841961,3.2009,156.17,156.12,10.82]
[1727436841962,10.82,156.18,156.12,10.82]
[1727436842163,10.82,156.15,156.07,238.05607157]
[1727436842364,10.82,156.15,156.1,10.82]
[1727436842566,3.2015,156.14,156.11,3.2019]
[1727436845365,14.0213,156.15,156.12,3.2017]
[1727436845574,3.2013,156.15,156.12,3.2017]
[1727436847576,4.49554682,156.24,156.13,10.82]
[1727436847774,10.82,156.17,156.13,10.82]
[1727436848171,14.0209,156.17,156.13,14.0215]
[1727436849074,14.0209,156.17,156.14,3.2014]
[1727436849477,3.2007,156.18,156.14,10.82]
[1727436849977,3.2007,156.18,156.15,3.2012]
[1727436850274,10.82,156.2,156.15,3.2012]
[1727436850474,10.82,156.19,156.15,3.2012]
[1727436850976,3.2006,156.18,156.15,3.2012]
[1727436851778,3.2008,156.17,156.14,3.2014]
[1727436855780,14.0207,156.18,156.15,3.2012]
[1727436856579,3.2007,156.18,156.15,3.2012]
[1727436857068,14.0205,156.19,156.16,3.201]
[1727436857270,10.82,156.18,156.1,10.82]
[1727436857566,10.82,156.12,156.07,236.71717157]
[1727436857768,10.82,156.1,156.07,235.37267157]
[1727436857977,10.82,156.09,156.07,180.79766]
[1727436858975,14.0225,156.09,156.07,180.79766]
[1727436859379,3.25684657,156.13,156.07,180.79766]
[1727436859580,14.0226,156.08,156.07,180.79766]
[1727436862486,14.0226,156.08,156.07,81.60496]
[1727436865988,3.2031,156.06,156.01,3.2039]
[1727436866196,14.0231,156.06,156.02,3.2039]
[1727436866483,14.0231,156.06,155.93,1.3653]
[1727436866484,3.2039,156.02,155.93,1.3653]
[1727436866683,10.82,156.01,155.93,1.3653]
[1727436866889,10.82,156.01,155.97,3.2049]
[1727436868291,3.204,156.02,155.97,3.2049]
[1727436870197,3.2041,156.01,155.97,3.2049]
[1727436873896,3.2041,156.01,155.93,18.2953]
[1727436874400,3.2041,156.01,155.97,3.2047]
[1727436874796,3.2043,156.0,155.97,3.2047]
[1727436875197,16.93,156.03,155.97,3.2047]
[1727436875598,3.2041,156.01,155.98,3.2047]
[1727436878001,3.204,156.02,155.98,3.2047]
[1727436880896,16.93,156.05,155.96,16.93]
[1727436881406,3.2036,156.04,156.0,3.2041]
[1727436883210,3.2036,156.04,156.01,3.2041]
[1727436884307,16.93,156.07,156.02,3.2038]
[1727436885002,16.93,156.07,155.99,1.3669]
[1727436885604,3.2031,156.06,155.99,1.3669]
[1727436885805,16.93,156.07,155.99,1.3669]
[1727436887005,3.2033,156.05,156.02,3.2039]
[1727436887205,16.93,156.07,155.99,1.3669]
[1727436888105,3.2033,156.05,156.02,3.2037]
[1727436888504,16.93,156.07,156.02,3.2037]
[1727436888707,16.93,156.07,155.99,1.3669]
[1727436889211,3.2031,156.06,156.03,3.2035]
[1727436889413,16.93,156.07,155.99,1.3669]
[1727436889615,20.1329,156.07,156.03,3.2035]
[1727436890315,10.83,156.05,156.03,3.2035]
[1727436891812,10.83,156.04,156.01,3.2039]
[1727436892015,10.83,156.04,155.99,12.1969]
[1727436892210,10.83,156.04,156.02,3.2037]
[1727436895817,10.83,156.04,156.0,10.83]
[1727436897419,10.83,156.04,156.03,3.2037]
[1727436899419,3.2032,156.06,156.04,3.2034]
[1727436899725,10.83,156.06,156.01,10.83]
[1727436900023,10.83,156.06,156.04,3.2033]
[1727436900412,95.59432982,156.09,156.03,10.83]
[1727436900413,94.29622982,156.09,156.03,10.83]
[1727436900617,1.376,156.13,156.03,10.83]
[1727436900618,10.83,156.08,156.03,10.83]
[1727436901128,10.83,156.07,156.05,3.2032]
[1727436901316,10.83,156.06,155.99,1.3669]
[1727436901518,10.83,156.04,155.99,1.3669]
[1727436901717,10.83,156.03,156.02,3.2038]
[1727436902325,1.2951,156.1,156.04,3.2034]
[1727436902532,10.83,156.08,156.02,10.83]
[1727436902830,10.83,156.06,156.04,3.2034]
[1727436905421,10.83,156.06,156.05,3.2032]
[1727436905619,10.83,156.06,156.01,10.83]
[1727436906225,10.83,156.06,156.05,3.2032]
[1727436906523,10.83,156.08,156.04,10.83]
[1727436906925,10.83,156.08,156.06,3.203]
[1727436907724,4.5755651,156.13,156.07,3.2027]
[1727436907924,4.5755651,156.13,156.05,10.83]
[1727436907925,10.83,156.1,156.05,10.83]
[1727436908825,10.83,156.11,156.07,10.83]
[1727436909226,10.83,156.13,156.09,3.2023]
[1727436909529,3.202,156.12,156.09,3.2023]
[1727436909730,10.83,156.13,156.07,13.6048]
[1727436909928,14.0317,156.13,156.1,3.202]
[1727436910233,10.83,156.13,156.09,10.83]
[1727436910733,10.83,156.15,156.1,10.83]
[1727436911730,10.83,156.17,156.11,10.83]
[1727436911925,10.83,156.19,156.14,10.83]
[1727436912430,10.83,156.17,156.12,10.83]
[1727436912636,10.83,156.15,156.1,10.83]
[1727436912936,10.83,156.15,156.12,3.2016]
[1727436913629,10.83,156.15,156.13,3.2016]
[1727436913834,3.2008,156.17,156.13,10.83]
[1727436914029,14.0308,156.17,156.13,10.83]
[1727436914528,14.031,156.16,156.11,10.83]
[1727436915028,10.83,156.15,156.12,3.2017]
[1727436916627,10.83,156.17,156.13,3.2015]
[1727436916827,3.2,156.21,156.16,10.83]
[1727436917037,3.2,156.21,156.17,10.83]
[1727436917232,10.83,156.22,156.18,3.2004]
[1727436918135,10.83,156.23,156.17,10.83]
[1727436919936,3.1998,156.22,156.18,3.2005]
[1727436925338,10.83,156.19,156.14,3.2013]
[1727436925533,10.83,156.19,156.13,10.83]
[1727436925734,10.83,156.15,156.11,10.83]
[1727436926237,10.83,156.15,156.12,3.2018]
[1727436926638,10.83,156.15,156.08,2.6608]
[1727436926836,3.2014,156.14,156.11,3.2019]
[1727436927241,14.0312,156.15,156.12,3.2017]
[1727436927442,10.83,156.17,156.12,10.83]
[1727436927940,14.0309,156.17,156.13,3.2014]
[1727436928340,3.2009,156.17,156.13,3.2014]
[1727436929040,3.201,156.16,156.13,3.2014]
[1727436938949,16.92,156.18,156.09,16.92]
[1727436939256,16.92,156.2,156.11,16.92]
[1727436939553,1.3703,156.22,156.12,3.2017]
[1727436939554,3.2012,156.15,156.12,3.2017]
[1727436939950,16.92,156.18,156.09,16.92]
[1727436940146,3.2011,156.16,156.13,3.2016]
[1727436941750,3.2012,156.15,156.09,18.1878]
[1727436941955,16.92,156.16,156.09,1.2678]
[1727436942149,16.92,156.16,156.08,1.3367]
[1727436942355,3.2015,156.14,156.08,1.3367]
[1727436942953,3.2015,156.14,156.11,3.2019]
[1727436944354,3.2015,156.14,156.08,1.3367]
[1727436944355,16.92,156.14,156.08,1.3367]
[1727436944953,3.2019,156.12,156.09,3.2024]
[1727436945458,3.2017,156.13,156.1,3.2022]
[1727436951162,10.83,156.16,156.1,10.83]
[1727436951353,10.83,156.17,156.12,10.83]
[1727436951857,10.83,156.15,156.1,10.83]
[1727436952764,14.0313,156.15,156.12,3.2018]
[1727436954062,10.83,156.15,156.12,3.2018]
[1727436954960,14.0308,156.17,156.11,10.83]
[1727436955455,14.0308,156.17,156.13,3.2015]
[1727436955967,3.2011,156.16,156.13,3.2015]
[1727436956664,10.83,156.17,156.14,3.2014]
[1727436956855,10.83,156.17,156.12,10.83]
[1727436957654,3.2007,156.18,156.12,10.83]
[1727436957864,14.0307,156.18,156.12,10.83]
[1727436958856,10.83,156.18,156.15,3.201]
[1727436959967,14.0306,156.18,156.15,3.201]
[1727436964467,10.83,156.16,156.11,10.83]
[1727436965063,14.0311,156.16,156.13,3.2015]
[1727436965366,103.84379078,156.25,156.13,10.83]
[1727436965573,11.77224953,156.24,156.16,3.2009]
[1727436965769,10.83,156.18,156.16,3.2009]
[1727436966470,10.83,156.18,156.15,3.2011]
[1727436967771,14.0306,156.18,156.15,3.2011]
[1727436969767,10.83,156.17,156.15,3.2011]
[1727436969966,10.83,156.17,156.12,10.83]
[1727436970160,10.83,156.17,156.04,76.08]
[1727436970161,10.83,156.13,156.04,76.08]
[1727436970366,10.83,156.13,156.07,10.83]
[1727436970661,3.2015,156.14,156.11,14.0319]
[1727436976369,10.83,156.17,156.13,10.83]
[1727436976975,3.201,156.16,156.14,3.2013]
[1727436977176,10.83,156.17,156.14,3.2013]
[1727436977475,10.83,156.18,156.13,10.83]
[1727436977874,10.83,156.2,156.15,10.83]
[1727436978684,11.80442337,156.24,156.16,10.83]
[1727436978869,10.83,156.22,156.17,10.83]
[1727436980377,3.2001,156.21,156.17,14.0307]
[1727436981470,3.2001,156.21,156.18,3.2006]
[1727436981870,3.2001,156.21,156.17,10.83]
[1727436982079,3.2001,156.21,156.17,14.0307]
[1727436983480,3.2001,156.21,156.18,3.2006]
[1727436984678,3.2001,156.21,156.17,14.0307]
[1727436985381,14.0301,156.21,156.17,14.0307]
[1727436985682,3.2002,156.2,156.17,3.2007]
[1727436986081,10.83,156.19,156.13,10.83]
[1727436986679,3.2007,156.18,156.14,3.2013]
[1727436987473,3.2007,156.18,156.13,10.83]
[1727436988481,3.2007,156.18,156.14,10.83]
[1727436989580,10.83,156.19,156.14,10.83]
[1727436989786,10.83,156.15,156.04,76.08]
[1727436989987,10.83,156.15,156.09,10.83]
[1727436990185,3.2017,156.13,156.09,10.83]
[1727436991492,3.2017,156.13,156.09,14.0324]
[1727436991695,3.2017,156.13,156.06,3.20895387]
[1727436991696,3.2015,156.14,156.11,10.83]
[1727436991899,6.3988,156.24,156.12,14.0317]
[1727436992208,10.83,156.18,156.13,10.83]
[1727436992405,3.2011,156.16,156.13,10.83]
[1727436992607,10.83,156.18,156.13,10.83]
[1727436993002,3.201,156.16,156.12,10.83]
[1727436993203,10.83,156.17,156.12,10.83]
[1727436993500,14.0309,156.17,156.12,14.0317]
[1727436993807,10.83,156.16,156.1,10.83]
[1727436994306,10.83,156.13,156.04,76.08]
[1727436994505,10.83,156.13,156.07,10.83]
[1727436994808,10.83,156.1,156.04,86.91]
[1727436995002,10.83,156.1,156.04,10.83]
[1727436995204,3.2026,156.09,156.04,14.0333]
[1727436995497,10.83,156.1,156.04,14.0333]
[1727436995701,3.2027,156.08,156.04,3.2033]
[1727436995901,3.2027,156.08,156.04,14.0333]
[1727436996702,3.2025,156.09,156.05,3.2032]
[1727436997414,3.2025,156.09,156.06,10.83]
[1727436998509,3.20199894,156.17,156.08,10.83]
[1727436998510,10.83,156.15,156.08,10.83]
[1727436998699,23.18308237,156.16,156.11,10.83]
[1727436998902,10.83,156.16,156.11,10.83]
[1727436999514,12.35307244,156.24,156.12,10.83]
[1727436999716,10.83,156.18,156.12,10.83]
[1727437000516,3.2012,156.15,156.12,10.83]
[1727437001611,3.201,156.17,156.14,10.83]
[1727437002009,10.83,156.2,156.14,10.83]
[1727437002411,16.91,156.21,156.11,16.91]
[1727437002609,3.2009,156.17,156.12,3.2016]
[1727437003216,3.201,156.16,156.12,3.2016]
[1727437003712,3.2015,156.14,156.09,16.91]
[1727437004308,3.2015,156.14,156.1,3.2021]
[1727437004923,12.35106161,156.18,156.07,3.21075973]
[1727437004924,3.2019,156.12,156.07,16.91]
[1727437005803,3.2019,156.12,156.09,3.2023]
[1727437006011,20.03718456,156.17,156.07,16.91]
[1727437006314,103.84369078,156.25,156.11,3.2019]
[1727437006315,16.91,156.19,156.11,3.2019]
[1727437006513,12.35078771,156.18,156.09,16.91]
[1727437007214,3.2017,156.13,156.09,20.1123]
[1727437007411,16.91,156.17,156.07,3.21670882]
[1727437007608,16.91,156.2,156.08,3.2025]
[1727437007609,3.202,156.11,156.08,3.2025]
[1727437007814,103.84369078,156.25,156.07,16.91]
[1727437007815,20.08955107,156.17,156.07,16.91]
[1727437008113,16.91,156.17,156.07,16.91]
[1727437008308,3.2018,156.13,156.09,3.2023]
[1727437009313,20.09083237,156.17,156.08,3.2026]
[1727437009506,12.35184288,156.16,156.08,3.2026]
[1727437010608,3.2019,156.12,156.08,3.2026]
[1727437011616,3.2021,156.11,156.08,3.2026]
[1727437015318,16.91,156.14,156.05,20.14517468]
[1727437015613,16.91,156.12,156.02,16.91]
[1727437016516,3.2026,156.09,156.06,3.2029]
[1727437016721,3.2026,156.09,155.99,82.5087]
[1727437016722,16.91,156.14,156.05,16.91]
[1727437017017,3.202,156.12,156.07,16.91]
[1727437017313,3.202,156.12,156.04,3.14824775]
[1727437017314,16.91,156.19,156.09,16.91]
[1727437017519,3.2012,156.15,156.12,3.2018]
[1727437020020,3.201,156.16,156.13,3.2016]
[1727437021225,16.91,156.17,156.08,16.91]
[1727437021421,16.91,156.19,156.09,3.17113653]
[1727437021622,3.201,156.16,156.13,3.2016]
[1727437022322,3.2012,156.15,156.12,3.2018]
[1727437025927,3.2014,156.14,156.08,20.12373436]
[1727437026432,3.2014,156.14,156.11,14.0319]
[1727437028626,3.2016,156.13,156.11,14.0319]
[1727437031528,3.2015,156.14,156.11,14.0319]
[1727437035827,3.2016,156.13,156.11,14.0319]
[1727437036837,3.2014,156.14,156.11,14.0319]
[1727437037634,3.2016,156.13,156.11,3.2019]
[1727437038333,3.202,156.12,156.09,3.2023]
[1727437039131,10.83,156.14,156.1,10.83]
[1727437040036,14.0315,156.14,156.11,3.2019]
[1727437044129,3.2016,156.13,156.11,3.2019]
[1727437045529,10.83,156.14,156.08,10.83]
[1727437045530,3.2019,156.12,156.08,10.83]
[1727437046238,3.2017,156.13,156.09,10.83]
[1727437046736,3.2018,156.12,156.06,2.6534]
[1727437047241,10.83,156.13,156.08,10.83]
[1727437047541,3.2019,156.12,156.09,3.2023]
[1727437049438,3.19143128,156.17,156.1,10.83]
[1727437049640,10.83,156.16,156.1,10.83]
[1727437050238,23.18959128,156.16,156.1,10.83]
[1727437050739,3.2015,156.14,156.11,3.2019]
[1727437051648,14.0315,156.14,156.11,3.2019]
[1727437051843,3.2017,156.13,156.1,14.0321]
[1727437052236,3.2017,156.13,156.1,3.2021]
[1727437052643,3.2024,156.1,156.07,3.2027]
[1727437052843,10.83,156.13,156.08,10.83]
[1727437053045,1.3947,156.16,156.06,2.6534]
[1727437053243,10.83,156.13,156.08,10.83]
[1727437053444,3.202,156.12,156.09,3.2023]
[1727437054747,3.2022,156.11,156.08,3.2025]
[1727437055248,3.2022,156.11,156.07,10.83]
[1727437055851,3.2022,156.11,156.08,3.2026]
[1727437057750,3.2022,156.1,156.08,3.2026]
[1727437057952,10.83,156.11,156.05,12.1201]
[1727437058555,10.83,156.12,156.08,10.83]
[1727437058856,3.2014,156.14,156.11,10.83]
[1727437059859,3.2014,156.14,156.11,14.0319]
[1727437060253,1.276,156.18,156.12,10.83]
[1727437060455,10.83,156.17,156.12,10.83]